[Event "FIDE Candidates Tournament 2022"]
[Site "Madrid"]
[Date "2022.07.03"]
[Round "13.3"]
[White "Firouzja, Alireza"]
[Black "Ding, Liren"]
[Result "1/2-1/2"]
[ECO "C47"]
[WhiteElo "2804"]
[BlackElo "2806"]
[Annotator "TA"]
[PlyCount "84"]
[EventDate "2022.06.17"]
[EventType "tourn"]
[EventCountry "ESP"]
[SourceTitle "playchess.com"]
[Source "ChessBase"]
[SourceQuality "1"]
[TimeControl "40/7200:20/3600:900+30"]

{[%evp 24,84,0,0,25,23,23,20,23,14,22,23,25,25,25,25,24,10,13,10,12,12,12,12,16,16,10,0,0,0,0,0,0,0,0,0,0,0,0,0,0,0,0,0,0,0,0,0,0,0,0,0,0,0,0,0,0,0,0,0,0,0,0]} 1. e4 {[%emt 0:00:02]} e5 {[%emt 0:00:06]} 2. Nf3 {[%emt 0:00:04]} Nc6 {[%emt 0:00:04]} 3. Nc3 {[%emt 0:00:05]} Nf6 {[%emt 0:00:06]} 4. d4 {[%emt 0:00:06]} exd4 {[%emt 0:00:04]} 5. Nxd4 {[%emt 0:00:05]} Bb4 {[%emt 0:00:05]} 6. Nxc6 {[%emt 0:00:07]} bxc6 {[%emt 0:00:03]} 7. Bd3 {[%emt 0:00:06]} d5 {[%emt 0:00:06]} 8. exd5 {[%emt 0:00:06]} O-O {[%emt 0:00:05]} 9. O-O {[%emt 0:00:06]} cxd5 {[%emt 0:00:04]} 10. Bg5 {[%emt 0:00:07]} c6 {[%emt 0:00:12]} 11. Qf3 {[%emt 0:00:09]} Bd6 {[%emt 0:00:35] 11...h6 is a critical line.} 12. Rae1 {[%emt 0:00:16]} Rb8 {[%emt 0:00:39]} 13. Nd1 {[%emt 0:00:10]} h6 {[%emt 0:00:03] C47: Scotch Four Knights and Four Knights with 4 g3.} 14. Bxf6 {[%emt 0:00:06]} Qxf6 {[%emt 0:00:04]} 15. Qxf6 {[%emt 0:00:07]} gxf6 {[%emt 0:00:03]} 16. b3 {[%emt 0:00:08]} Kg7 {[%emt 0:05:07]} 17. Ne3 {[%emt 0:00:08]} Re8 {[%emt 0:00:03]} 18. Nf5+ {[%emt 0:00:12]} Bxf5 {[%emt 0:00:05]} 19. Bxf5 {[%emt 0:00:14]} Re5 {[%emt 0:00:04] [#]} 20. Bg4 $146 {[%emt 0:02:34]} ({Predecessor:} 20. Bd7 Rb6 21. g3 Bb4 22. Rd1 Re2 23. Bf5 Re5 24. Bd3 c5 25. f4 Re3 26. Kg2 {½-½ (43) Rapport,R (2726)-Ding,L (2809) Shenzhen 2019}) 20... h5 {[%emt 0:06:38] The position is equal.} 21. Rxe5 {[%emt 0:05:11]} fxe5 {[%emt 0:00:21]} 22. Bxh5 $11 {[%emt 0:01:33][%mdl 4096] Endgame KRB-KRB} f5 {[%emt 0:00:17]} 23. g3 {[%emt 0:03:34]} e4 {[%emt 0:01:11]} 24. Be2 {[%emt 0:02:15]} Kf6 {[%emt 0:06:03]} 25. f4 {[%emt 0:14:44]} a5 {[%emt 0:02:50]} 26. a4 {[%emt 0:01:34]} Rg8 {[%emt 0:19:10]} 27. Kg2 {[%emt 0:02:30]} Ke6 {[%emt 0:00:03]} 28. h3 {[%emt 0:04:23]} Be7 {[%emt 0:01:46]} 29. g4 {[%emt 0:24:00]} Bh4 {[%emt 0:00:13]} 30. g5 {[%emt 0:02:58]} Kd6 {[%emt 0:00:21]} 31. Rb1 {[%emt 0:12:25]} Rb8 {[%emt 0:15:18]} 32. c3 {[%emt 0:12:16]} c5 {[%emt 0:01:16]} 33. Bb5 {[%emt 0:04:06]} d4 {[%emt 0:05:39]} 34. Rd1 {[%emt 0:14:20]} d3 {[%emt 0:00:12]} 35. Bxd3 $1 {[%emt 0:00:23]} exd3 {[%emt 0:00:04]} 36. Rxd3+ {[%emt 0:00:04] KRB-KR} Ke6 {[%emt 0:00:14]} 37. c4 {[%emt 0:02:19]} Kf7 {[%emt 0:01:18]} 38. Rd5 {[%emt 0:03:20][%csl LRc5,LRf5]} Kg6 {[%emt 0:00:11]} 39. Rxc5 {[%emt 0:01:12]} Rxb3 {[%emt 0:00:03]} 40. Rc6+ {[%emt 0:00:00]} Kg7 {[%emt 0:00:00]} 41. Rc7+ {[%emt 0:03:59]} Kg6 {[%emt 0:00:18]} 42. Rc6+ {[%emt 0:00:06]} Kg7 {[%emt 0:00:01] An interesting draw.  Weighted Error Value: White=0.01 (flawless) /Black=0.02 (flawless)} 1/2-1/2